bitfinex-derivatives/quotes_ETHF0:USTF0_20251107
["timestamp","ask_amount","ask_price","bid_price","bid_amount"]
[1762532345099,0.49319,3287.2,3286.9,0.49323]
[1762532345298,3.2078,3287.7,3286.6,3.2078]
[1762532345793,3.2078,3287.2,3286.6,3.2078]
[1762532345994,0.49322,3287.0,3286.6,3.2078]
[1762532346299,0.49323,3286.9,3286.6,3.2078]
[1762532346491,3.2078,3287.6,3286.6,3.2078]
[1762532346692,0.4932,3287.1,3286.9,0.49323]
[1762532347096,3.2078,3287.2,3286.6,3.2078]
[1762532347292,3.2078,3287.6,3287.1,0.2437]
[1762532347497,3.2078,3287.6,3287.4,0.49316]
[1762532347692,3.70310155,3288.0,3287.9,0.1537]
[1762532348093,3.21003155,3288.0,3287.9,0.1537]
[1762532349099,3.21003155,3288.0,3287.9,0.64679]
[1762532349496,3.21003155,3288.0,3287.9,0.1537]
[1762532349497,3.70310155,3288.0,3287.9,0.1537]
[1762532349895,3.21003155,3288.0,3287.2,0.1537]
[1762532350209,0.49317,3287.4,3287.3,0.73687]
[1762532350499,0.49317,3287.4,3287.3,0.2437]
[1762532350697,0.49321,3287.2,3286.8,0.1537]
[1762532350902,0.49315,3287.5,3287.4,0.1537]
[1762532351099,0.49314,3287.6,3287.4,0.1537]
[1762532351295,0.49314,3287.6,3287.5,0.49315]
[1762532351497,0.49315,3287.5,3287.4,0.1537]
[1762532351704,3.2078,3287.7,3287.5,0.49314]
[1762532351705,3.70093,3287.7,3287.5,0.49314]
[1762532352007,0.49314,3287.6,3287.5,0.49314]
[1762532352202,0.49315,3287.5,3287.4,0.1537]
[1762532352402,0.49314,3287.6,3287.5,0.49315]
[1762532352603,0.49314,3287.6,3287.5,0.73685]
[1762532352810,0.49314,3287.6,3287.5,0.2437]
[1762532353004,0.49314,3287.6,3287.5,0.73685]
[1762532353306,0.49315,3287.5,3287.4,0.1537]
[1762532353496,3.70093,3287.7,3287.4,0.1537]
[1762532353695,0.00223155,3288.0,3287.9,0.49309]
[1762532353900,0.00223155,3288.0,3287.4,0.1537]
[1762532353901,0.49311,3287.8,3287.7,0.49311]
[1762532354402,0.00223155,3288.0,3287.4,0.1537]
[1762532354606,0.00223155,3288.0,3287.5,0.49315]
[1762532354906,0.49311,3287.8,3287.4,0.1537]
[1762532355104,0.49314,3287.6,3287.5,0.49314]
[1762532355410,0.49318,3287.3,3287.1,0.49321]
[1762532355599,0.49321,3287.2,3287.1,0.49321]
[1762532356011,0.49318,3287.3,3287.2,0.49318]
[1762532356502,0.49324,3287.0,3286.9,0.49324]
[1762532356711,3.2078,3287.3,3286.4,0.4933]
[1762532357009,3.2078,3287.3,3286.2,3.36513155]
[1762532357207,0.49327,3286.7,3286.6,0.49329]
[1762532357405,0.49326,3286.8,3286.7,0.49326]
[1762532357607,0.4933,3286.6,3286.5,0.49329]
[1762532358001,0.49327,3286.7,3286.6,0.49327]
[1762532358202,0.49331,3286.5,3286.4,0.4933]
[1762532358904,0.4933,3286.5,3286.4,0.4933]
[1762532359102,3.2078,3287.2,3286.9,0.49323]
[1762532359410,3.2078,3287.2,3286.8,0.1537]
[1762532359705,3.2078,3287.2,3286.9,0.49324]
[1762532360210,0.49324,3286.9,3286.8,0.1537]
[1762532360397,0.49328,3286.7,3286.5,0.4933]
[1762532360600,0.49326,3286.8,3286.7,0.49326]
[1762532360797,3.70106,3286.8,3286.7,0.49326]
[1762532361002,0.4933,3286.6,3286.5,0.4933]
[1762532361505,0.49333,3286.4,3286.3,0.49332]
[1762532362004,3.2078,3286.8,3286.2,3.36513155]
[1762532362205,0.49329,3286.7,3286.6,0.49329]
[1762532362412,3.2078,3286.8,3286.2,3.36513155]
[1762532362711,0.49332,3286.5,3286.4,0.49331]
[1762532363003,3.2078,3286.8,3286.2,0.00363155]
[1762532363004,0.62703,3286.3,3286.2,0.00363155]
[1762532363211,3.83483,3286.3,3286.2,0.00363155]
[1762532363905,11.83483,3286.3,3286.2,3.155e-05]
[1762532364305,0.49345,3285.5,3285.4,3.2078]
[1762532364506,0.49345,3285.5,3284.4,0.1537]
[1762532364507,0.49357,3284.7,3284.5,3.2078]
[1762532364710,0.49356,3284.9,3284.5,3.2078]
[1762532365009,3.2078,3285.1,3284.5,3.2078]
[1762532365204,0.49353,3285.0,3284.9,0.49354]
[1762532365401,0.49355,3284.9,3284.8,0.49356]
[1762532365807,3.21453535,3285.1,3284.5,3.21573894]
[1762532366008,0.00673535,3285.1,3285.0,0.147]
[1762532366209,0.00673535,3285.1,3285.0,0.64053]
[1762532366613,0.00673535,3285.1,3285.0,0.89083]
[1762532367003,3.2078,3285.5,3285.4,0.74377]
[1762532367306,3.2078,3286.0,3285.9,0.74369]
[1762532367508,3.2078,3286.0,3285.6,0.147]
[1762532367509,3.2078,3286.4,3286.3,0.74362]
[1762532367911,0.49328,3286.7,3286.5,0.49329]
[1762532368212,0.49328,3286.7,3286.2,0.147]
[1762532368213,0.49329,3286.6,3286.2,0.147]
[1762532368410,0.00272307,3286.7,3286.2,0.147]
[1762532368603,0.4933,3286.5,3286.4,0.49331]
[1762532368804,0.49329,3286.6,3286.5,0.4933]
[1762532369006,0.49331,3286.5,3286.4,0.49332]
[1762532369306,0.00272307,3286.7,3286.5,0.4933]
[1762532369506,0.00272307,3286.7,3286.2,0.147]
[1762532369914,0.49599307,3286.7,3286.6,0.49329]
[1762532370609,0.49332,3286.5,3286.2,0.147]
[1762532370809,0.00272307,3286.7,3286.2,0.147]
[1762532371011,0.49329,3286.6,3286.5,0.4933]
[1762532371203,0.49331,3286.5,3286.2,0.147]
[1762532371410,0.49600307,3286.7,3286.2,0.147]
[1762532371613,0.00272307,3286.7,3286.6,0.49329]
[1762532371801,0.00272307,3286.7,3286.2,3.3548]
[1762532372116,0.4933,3286.5,3286.4,0.49331]
[1762532372308,0.49329,3286.6,3286.2,3.3548]
[1762532372609,0.49332,3286.4,3286.2,3.3548]
[1762532372806,0.4933,3286.6,3286.2,3.3548]
[1762532373009,0.00272307,3286.7,3286.6,0.49329]
[1762532373307,0.00272307,3286.7,3286.2,3.3548]
[1762532373701,0.00272307,3286.7,3286.6,0.74359]
[1762532373913,0.00272307,3286.7,3286.2,3.3548]
[1762532374215,0.49333,3286.3,3286.2,0.147]
[1762532374412,0.58156,3286.1,3286.0,0.00456239]
[1762532374614,0.57708,3285.3,3285.2,3.2078]
[1762532374814,3.2078,3285.9,3285.6,0.147]
[1762532375014,3.2078,3285.9,3285.8,0.49341]
[1762532375211,3.2078,3286.3,3285.6,0.147]
[1762532375406,0.49329,3286.6,3286.4,0.4933]
[1762532375620,0.49329,3286.6,3286.2,0.15156239]
[1762532375813,0.4933,3286.5,3286.4,0.4933]
[1762532376319,0.49329,3286.6,3286.5,0.49329]
[1762532376615,3.21052307,3286.7,3286.4,0.49332]
[1762532376817,0.49333,3286.3,3286.2,0.15156239]
[1762532377017,0.4933,3286.6,3286.5,0.4933]
[1762532377216,3.21052307,3286.7,3286.5,0.4933]
[1762532377418,0.4933,3286.6,3286.2,0.64491239]
[1762532377720,3.21052307,3286.7,3286.6,0.49329]
[1762532378221,3.21052307,3286.7,3286.6,0.74359]
[1762532378912,0.00272307,3286.7,3286.6,0.74359]
[1762532379518,0.00272307,3286.7,3286.6,0.2503]
[1762532379721,0.00272307,3286.7,3286.6,0.74357]
[1762532380424,0.00272307,3286.7,3286.6,0.2503]
[1762532380718,0.00272307,3286.7,3286.6,0.74357]
[1762532380915,0.00272307,3286.7,3286.6,0.2503]
[1762532382115,0.00272307,3286.7,3286.5,3.2078]
[1762532382517,0.00272307,3286.7,3286.6,0.2414]
[1762532382822,0.00272307,3286.7,3286.6,0.73467]
[1762532383226,0.49314,3287.5,3287.4,0.1449]
[1762532383617,3.2078,3287.6,3287.4,0.1449]
[1762532383817,0.0914,3287.5,3286.8,0.1449]
[1762532384018,0.49313,3287.6,3287.2,0.49318]
[1762532384323,0.49631385,3287.6,3287.4,0.1449]
[1762532384519,0.00318385,3287.6,3287.4,0.1449]
[1762532384710,0.49632385,3287.6,3287.4,0.1449]
[1762532384914,0.49317,3287.3,3287.2,0.00295338]
[1762532385621,0.49316,3287.4,3287.2,0.00295338]
[1762532386019,0.49317,3287.3,3287.2,0.00295338]
[1762532386218,0.58457,3287.3,3287.2,0.00295338]
[1762532387021,1.31546472,3287.3,3287.2,0.00295338]
[1762532387213,8.58457,3287.3,3287.2,0.00295338]
[1762532387518,0.00318385,3287.6,3287.2,0.00295338]
[1762532387519,0.00318385,3287.6,3287.4,0.1449]
[1762532387716,0.00318385,3287.6,3287.5,0.2414]
[1762532388516,0.00318385,3287.6,3287.4,0.1449]
[1762532388719,3.2078,3288.4,3287.8,0.73449]
[1762532388923,3.2078,3288.4,3288.3,0.2414]
[1762532389125,3.2078,3288.8,3288.6,0.1449]
[1762532389728,3.2078,3288.8,3288.7,0.2414]
[1762532389915,3.21062756,3288.8,3288.7,0.2414]
[1762532390316,0.00282756,3288.8,3288.7,0.2414]
[1762532390819,0.00282756,3288.8,3288.0,0.1449]
[1762532390820,0.49298,3288.6,3288.0,0.1449]
[1762532391020,0.00282756,3288.8,3288.3,0.49302]
[1762532391227,0.00282756,3288.8,3288.7,0.2414]
[1762532394429,2.756e-05,3288.8,3288.7,0.2414]
[1762532395822,2.756e-05,3288.8,3288.6,3.3527]
[1762532395823,0.49297756,3288.8,3288.6,3.3527]
[1762532396215,2.756e-05,3288.8,3288.6,3.3527]
[1762532396419,0.49297756,3288.8,3288.6,3.3527]
[1762532396825,0.49302,3288.4,3288.2,3.2078]
[1762532398130,0.49299,3288.5,3288.4,0.2349]
[1762532398519,2.756e-05,3288.8,3288.4,0.2349]
[1762532398720,0.49303,3288.3,3288.0,0.63796]
[1762532398919,0.493,3288.5,3288.1,0.49305]
[1762532399123,2.756e-05,3288.8,3288.6,0.1513]
[1762532399427,2.756e-05,3288.8,3288.6,0.64427]
[1762532399822,2.756e-05,3288.8,3288.6,0.1513]
[1762532400222,2.756e-05,3288.8,3288.2,3.2078]
[1762532400524,0.49297756,3288.8,3288.6,0.1513]
[1762532400725,0.49296756,3288.8,3288.6,0.1513]
[1762532401319,0.49297756,3288.8,3288.6,0.1513]
[1762532401928,0.49302,3288.3,3288.2,3.2078]
[1762532402131,2.756e-05,3288.8,3288.2,3.2078]
[1762532402427,2.756e-05,3288.8,3288.7,0.2349]
[1762532402629,0.49296756,3288.8,3288.7,0.2349]
[1762532402819,0.49296,3288.7,3288.6,0.1513]
[1762532403025,2.756e-05,3288.8,3288.6,0.1513]
[1762532403530,2.756e-05,3288.8,3288.0,0.1449]
[1762532403731,0.49305,3288.1,3288.0,0.1449]
[1762532404132,3.70085,3288.1,3288.0,0.1449]
[1762532404434,0.49317,3287.3,3287.2,0.13311338]
[1762532404637,3.2078,3287.6,3287.5,0.2349]
[1762532404834,0.49314,3287.5,3287.2,0.13311338]
[1762532405032,3.70092,3287.6,3287.4,0.1513]
[1762532405227,0.49314,3287.5,3287.4,0.1513]
[1762532405540,0.49317,3287.3,3287.2,0.13311338]
[1762532405830,0.49311,3287.7,3287.5,0.49314]
[1762532406031,0.00456239,3287.8,3287.4,0.1513]
[1762532406233,0.00456239,3287.8,3287.7,0.2349]
[1762532406630,0.00456239,3287.8,3287.7,0.72801]
[1762532406832,0.00456239,3287.8,3287.7,3.93581]
[1762532407529,0.493,3288.4,3288.1,0.49305]
[1762532407732,0.493,3288.5,3288.0,0.1513]
[1762532407926,3.20782756,3288.8,3288.2,0.49303]
[1762532408140,0.49297,3288.7,3288.6,0.1513]
[1762532408334,0.49301,3288.4,3288.1,3.2078]
[1762532408533,0.49299,3288.5,3288.2,0.49303]
[1762532408929,3.20782756,3288.8,3288.1,3.2078]
[1762532409132,3.20782756,3288.8,3288.6,0.1513]
[1762532409332,0.49296,3288.7,3288.6,0.1513]
[1762532409531,3.20782756,3288.8,3288.6,0.1513]
[1762532409931,2.756e-05,3288.8,3288.7,0.2349]
[1762532410139,2.756e-05,3288.8,3288.7,0.72786]
[1762532410339,2.756e-05,3288.8,3288.7,0.49296]
[1762532411133,3.2078,3290.4,3289.9,0.49278]
[1762532411428,3.2078,3291.3,3291.0,0.1513]
[1762532411629,3.2078,3291.7,3291.2,0.2349]
[1762532411830,0.49241,3292.4,3291.6,0.3023]
[1762532412037,0.00267276,3292.4,3291.6,0.07125902]
[1762532412231,0.00267276,3292.4,3292.2,0.1513]
[1762532412433,0.00267276,3292.4,3292.3,3.2078]
[1762532412832,3.2078,3293.5,3292.3,3.70022]
[1762532412833,0.49232,3293.0,3292.3,3.70022]
[1762532413040,3.3518,3293.5,3292.3,3.70022]
[1762532413231,0.49237,3292.7,3292.3,3.2078]
[1762532413838,0.49613335,3292.7,3292.3,3.2078]
[1762532414131,0.00376335,3292.7,3292.3,3.2078]
[1762532414737,0.00376335,3292.7,3292.5,0.49238]
[1762532416039,0.00376335,3292.7,3292.6,8.0]
[1762532416238,0.00376335,3292.7,3292.6,14.0744]
[1762532416437,3.2078,3293.9,3292.6,14.0744]
[1762532416438,3.2078,3293.9,3292.8,0.1476]
[1762532416639,3.2078,3293.9,3293.0,3.21235539]
[1762532416838,0.49229,3293.2,3293.0,3.21235539]
[1762532417138,3.2078,3293.9,3293.0,3.21235539]
[1762532417341,0.49228,3293.3,3293.0,3.21235539]
[1762532417646,0.49229,3293.2,3293.0,3.21235539]
[1762532417940,0.00217981,3293.3,3293.2,0.2349]
[1762532419439,0.49445981,3293.3,3293.0,3.21235539]
[1762532420045,0.49229,3293.2,3293.0,3.21235539]
[1762532420241,0.238,3293.1,3293.0,3.21235539]
[1762532420442,0.238,3293.1,3293.0,0.00455539]
[1762532420644,3.4458,3293.1,3293.0,0.00455539]
[1762532420945,0.49251,3291.7,3291.6,0.00385902]
[1762532421644,0.4925,3291.8,3291.6,0.00385902]
[1762532421947,3.21233208,3292.0,3291.6,0.00385902]
[1762532422247,0.00453208,3292.0,3291.6,0.00385902]
[1762532422541,0.00453208,3292.0,3291.8,3.70029]
[1762532422746,0.00217981,3293.3,3291.8,3.70029]
[1762532422747,0.49236,3292.7,3292.3,0.49241]
[1762532422937,0.49231,3293.1,3292.6,0.49236]
[1762532423136,0.00217981,3293.3,3292.4,0.49239]
[1762532423338,0.00217981,3293.3,3292.2,3.2078]
[1762532423634,0.00217981,3293.3,3292.3,0.4924]
[1762532423837,0.49234,3292.9,3292.4,0.4924]
[1762532424039,0.49234,3292.9,3292.6,3.70017]
[1762532424241,0.00217981,3293.3,3291.6,9.50385902]
[1762532424242,0.49242,3292.4,3292.2,3.2078]
[1762532424444,0.00217981,3293.3,3292.2,3.2078]
[1762532424640,0.00217981,3293.3,3292.2,3.70022]
[1762532425035,0.49239,3292.5,3292.2,3.2078]
[1762532425261,0.49248,3291.9,3291.8,3.2078]
[1762532425446,0.144,3292.8,3291.8,3.2078]
[1762532425650,3.2078,3292.5,3291.8,3.2078]
[1762532425840,0.49251,3291.7,3291.6,0.00385902]
[1762532426046,0.73491,3291.7,3291.6,0.00385902]
[1762532426244,3.3531,3292.1,3291.6,0.00385902]
[1762532426443,3.2078,3292.5,3291.6,0.00385902]
[1762532426948,0.49243,3292.2,3291.8,3.70029]
[1762532427253,3.2078,3292.5,3291.8,3.2078]
[1762532427453,0.49248,3291.9,3291.8,3.2078]
[1762532427850,0.4925,3291.8,3291.6,0.00385902]
[1762532428250,0.49251,3291.7,3291.6,0.00385902]
[1762532428452,3.2078,3292.1,3291.6,0.23745902]
[1762532428645,0.49249,3291.8,3291.6,0.49637902]
[1762532428841,0.49248,3291.9,3291.6,0.49636902]
[1762532429441,3.2078,3292.5,3291.8,3.2078]
[1762532429653,0.49246,3292.0,3291.8,3.70029]
[1762532430044,0.49244,3292.2,3291.8,3.70029]
[1762532430245,0.49246,3292.0,3291.8,3.2078]
[1762532430448,0.49244,3292.2,3291.8,3.2078]
[1762532430754,0.144,3292.8,3291.8,3.2078]
[1762532430946,0.49251,3291.7,3291.6,0.00385902]
[1762532431249,3.2078,3292.5,3291.6,0.00385902]
[1762532431449,3.2078,3292.5,3291.8,3.2078]
[1762532431644,0.144,3292.8,3291.8,3.2078]
[1762532431846,0.49243,3292.2,3291.9,0.49248]
[1762532432050,3.2078,3292.6,3291.8,3.2078]
[1762532432255,0.49248,3291.9,3291.8,3.2078]
[1762532432451,0.49249,3291.9,3291.6,0.49637902]
[1762532432653,3.2078,3292.6,3291.8,3.2078]
[1762532432952,0.49245,3292.1,3291.8,3.70029]
[1762532433248,3.2078,3292.6,3291.8,3.2078]
[1762532433450,0.49233,3292.9,3292.6,0.49237]
[1762532433644,0.00217981,3293.3,3292.8,3.2078]
[1762532433847,0.00217981,3293.3,3293.2,0.49228]
[1762532434047,3.2078,3294.5,3293.2,9.2806]
[1762532434248,3.2078,3294.5,3293.7,3.2078]
[1762532434657,3.2078,3295.0,3294.5,0.49208]
[1762532434849,3.2078,3295.0,3294.3,0.4921]
[1762532435150,0.00344328,3295.0,3294.3,0.00292648]
[1762532435356,0.00344328,3295.0,3294.6,3.69986]
[1762532435556,0.00344328,3295.0,3294.7,0.49206]
[1762532435754,0.00344328,3295.0,3294.6,3.2078]
[1762532436556,0.00344328,3295.0,3294.8,0.49204]
[1762532437154,0.49203,3294.9,3294.6,3.2078]
[1762532437654,0.00344328,3295.0,3294.6,3.2078]
[1762532438159,0.00344328,3295.0,3294.6,3.4414]
[1762532438357,0.49205,3294.8,3294.6,3.4414]
[1762532438553,0.49547328,3295.0,3294.6,3.93347]
[1762532438856,0.00344328,3295.0,3294.6,3.2078]
[1762532439049,0.00344328,3295.0,3294.7,0.49205]
[1762532439253,0.00344328,3295.0,3294.6,3.2078]
[1762532439552,0.00344328,3295.0,3294.8,0.49204]
[1762532439762,0.49545328,3295.0,3294.6,3.69986]
[1762532439948,0.00344328,3295.0,3294.9,0.3813]
[1762532440253,3.2078,3296.0,3294.9,0.1477]
[1762532440561,3.2078,3296.0,3295.5,3.2078]
[1762532440852,3.2078,3296.0,3295.9,0.2443]
[1762532441160,0.49183,3296.2,3295.9,3.69968]
[1762532441454,0.49185,3296.1,3295.9,3.69968]
[1762532441658,0.49410435,3296.2,3295.9,3.69968]
[1762532441857,0.49185,3296.1,3295.9,3.69968]
[1762532442153,0.00226435,3296.2,3295.9,3.2078]
[1762532442354,0.4919,3295.8,3295.5,3.2078]
[1762532442560,0.49186,3296.0,3295.6,0.49192]
[1762532442955,0.49194,3295.5,3295.4,0.00455539]
[1762532443151,0.00226435,3296.2,3295.4,0.00455539]
[1762532443152,0.00226435,3296.2,3296.1,0.2443]
[1762532443352,3.2078,3296.9,3296.3,0.1527]
[1762532443654,0.49171,3297.1,3296.7,3.2078]
[1762532443858,0.1436,3297.0,3296.7,3.2078]
[1762532444157,3.2078,3297.5,3296.3,3.3555]
[1762532444359,0.4918,3296.4,3296.3,3.21042174]
[1762532444561,0.1436,3297.0,3296.3,3.21042174]
[1762532444852,0.00261698,3297.5,3296.8,3.2078]
[1762532445454,0.00261698,3297.5,3297.2,3.2078]
[1762532445760,1.08003926,3299.4,3299.3,0.49137]
[1762532445956,0.70952915,3299.5,3299.4,0.49136]
[1762532446151,1.08003926,3301.3,3299.6,0.49132]
[1762532446356,0.49121,3300.4,3299.1,0.14684814]
[1762532446660,0.49123,3300.3,3299.6,0.49132]
[1762532446854,0.00339767,3300.4,3299.1,0.14955221]
[1762532447059,0.49126,3300.1,3299.1,0.14955221]
[1762532447360,0.00339767,3300.4,3300.0,3.2078]
[1762532447561,0.00339767,3300.4,3299.6,3.2078]
[1762532447754,0.49123,3300.3,3299.6,3.2078]
[1762532447958,0.00339767,3300.4,3300.0,3.2078]
[1762532448163,0.49460767,3300.4,3300.0,3.2078]
[1762532448455,0.00339767,3300.4,3300.0,3.2078]
[1762532448850,0.00339767,3300.4,3300.1,0.49125]
[1762532449060,0.00339767,3300.4,3300.0,3.84676]
[1762532449760,0.00339767,3300.4,3300.1,0.49124]
[1762532449957,0.00339767,3300.4,3300.0,3.3555]
[1762532450166,0.00339767,3300.4,3299.6,3.2078]
[1762532450167,0.49129,3299.9,3299.6,3.2078]
[1762532450365,0.49131,3299.8,3299.6,3.2078]
[1762532450555,0.49131,3299.8,3299.6,2.56278283]
[1762532450755,0.1436,3300.0,3299.2,3.2078]
[1762532451372,0.49136,3299.4,3299.2,3.2078]
[1762532451863,0.63488,3300.0,3299.2,3.2078]
[1762532452178,0.49133,3299.6,3299.2,3.2078]
[1762532452462,0.1436,3300.0,3299.2,3.2078]
[1762532452658,0.63499,3299.2,3299.1,0.00725221]
[1762532452854,3.2078,3299.8,3299.1,0.00725221]
[1762532453058,0.49138,3299.3,3299.1,0.00725221]
[1762532453459,3.2078,3299.8,3299.1,0.00725221]
[1762532453660,0.1436,3300.0,3299.3,3.69917]
[1762532453864,3.2078,3300.2,3299.3,3.2078]
[1762532454161,0.00339767,3300.4,3300.1,3.69905]
[1762532454361,0.00339767,3300.4,3300.2,0.49123]
[1762532455161,3.2078,3301.5,3300.1,3.2078]
[1762532455363,3.2078,3301.1,3300.3,3.2078]
[1762532455560,0.49122,3300.4,3299.9,3.69907]
[1762532455760,0.49122,3300.4,3299.9,3.2078]
[1762532455972,0.49123,3300.3,3300.1,0.49125]
[1762532456165,0.49125,3300.1,3299.9,3.2078]
[1762532456471,0.00226027,3300.3,3299.9,3.2078]
[1762532456658,0.00226027,3300.3,3300.0,0.49126]
[1762532456861,0.00226027,3300.3,3299.9,3.2078]
[1762532457067,0.00226027,3300.3,3300.1,0.49125]
[1762532457266,0.49349027,3300.3,3300.1,0.49125]
[1762532457463,0.00226027,3300.3,3300.1,0.49125]
[1762532458178,0.00226027,3300.3,3299.5,3.2078]
[1762532458573,0.49131,3299.7,3299.5,3.2078]
[1762532459070,0.00226027,3300.3,3299.7,0.4913]
[1762532459273,0.00226027,3300.3,3300.1,0.49125]
[1762532460167,3.2078,3301.3,3300.8,0.49115]
[1762532460368,0.49114,3300.9,3300.7,3.21234814]
[1762532460567,0.49114,3300.9,3300.7,0.00454814]
[1762532461165,0.00302041,3300.9,3300.7,0.00454814]
[1762532461375,0.00302041,3300.9,3300.7,0.49570814]
[1762532461771,3.2078,3302.1,3300.8,0.1663]
[1762532462078,0.49091,3302.4,3301.8,3.2078]
[1762532462373,0.40794622,3304.0,3301.9,0.49098]
[1762532462374,3.2078,3302.8,3301.9,0.49098]
[1762532462565,0.49089,3302.6,3301.8,3.2078]
[1762532462883,0.00247858,3302.6,3302.4,0.49091]
[1762532463281,3.2078,3303.3,3302.4,0.1663]
[1762532463574,0.49082,3303.1,3302.6,3.2078]
[1762532463768,0.49082,3303.1,3302.7,0.49086]
[1762532463977,3.2078,3303.3,3302.6,3.2078]
[1762532464174,0.00257397,3303.3,3303.1,3.2078]
[1762532464377,0.00257397,3303.3,3303.2,0.61669]
[1762532464876,0.00257397,3303.3,3303.2,0.1259]
[1762532465177,0.1613,3305.6,3302.9,3.2078]
[1762532465178,3.2078,3304.2,3302.9,3.2078]
[1762532465371,0.1613,3305.6,3303.9,3.2078]
[1762532465571,0.1613,3305.6,3304.9,0.49053]
[1762532465888,0.49039,3306.0,3305.5,3.2078]
[1762532466071,0.4904,3305.9,3305.8,3.2078]
[1762532466266,0.00328853,3305.9,3305.8,3.21122982]
[1762532467384,8.00328853,3305.9,3305.8,3.21122982]
[1762532467578,0.00328853,3305.9,3305.8,3.21122982]
[1762532468076,0.49025,3306.9,3306.1,0.49034]
[1762532468275,3.2078,3307.5,3306.8,3.2078]
[1762532468677,0.49023,3307.0,3306.8,3.2078]
[1762532469085,0.49033,3306.3,3306.2,0.00454104]
[1762532469278,0.49039,3305.9,3305.8,3.106586]
[1762532469477,0.49036,3306.1,3305.8,3.106586]
[1762532469689,0.49038,3306.0,3305.8,3.106586]
[1762532469987,0.49045,3305.5,3305.4,3.2078]
[1762532470283,0.49045,3305.5,3305.4,0.00223881]
[1762532470481,0.49047,3305.4,3305.0,3.2078]
[1762532470782,0.00449323,3305.8,3305.0,3.2078]
[1762532471085,0.49045,3305.6,3305.4,3.2078]
[1762532471473,0.49045,3305.6,3305.4,3.21030553]
[1762532471680,0.00449323,3305.8,3305.5,0.49044]
[1762532471879,0.1613,3306.4,3305.9,0.49038]
[1762532471880,0.49032,3306.4,3305.9,0.49038]
[1762532472083,0.49029,3306.6,3306.0,3.69817]
[1762532472278,0.49029,3306.6,3306.4,3.2078]
[1762532472579,0.00376681,3307.0,3306.4,3.2078]
[1762532472977,0.00830784,3307.0,3306.4,3.2078]
[1762532473171,0.49029,3306.6,3306.4,3.2078]
[1762532473378,0.49036,3306.1,3305.9,3.2078]
[1762532474074,0.49045,3305.5,3305.4,3.21030553]
[1762532474576,8.49045,3305.5,3305.4,0.00250553]
[1762532474776,0.49048,3305.3,3305.2,0.00454104]
[1762532474979,0.49057,3304.7,3304.6,3.2078]
[1762532475181,0.1613,3304.8,3303.8,0.13591]
[1762532475482,3.2078,3303.9,3302.5,3.2078]
[1762532475686,0.49087,3302.7,3302.5,0.00371165]
[1762532476682,0.00454104,3302.9,3302.8,0.49085]
[1762532476883,0.00454104,3302.9,3302.5,0.00371165]
[1762532477086,0.49088,3302.6,3302.5,0.00371165]
[1762532477387,0.49087,3302.7,3302.5,0.00371165]
[1762532477789,0.49088,3302.6,3302.5,0.00371165]
[1762532477983,0.49091,3302.4,3302.3,0.00454104]
[1762532478292,0.49108,3301.3,3301.1,3.2078]
[1762532478584,3.2078,3301.6,3300.7,0.49115]
[1762532478775,3.2078,3302.4,3301.7,0.49101]
[1762532478977,0.00248605,3302.4,3301.7,0.00216825]
[1762532479177,3.21028605,3302.4,3301.8,0.49099]
[1762532479378,0.00248605,3302.4,3301.8,3.2078]
[1762532479584,0.00248605,3302.4,3302.2,3.69873]
[1762532480589,0.00454104,3302.9,3302.8,0.49085]
[1762532480789,3.2078,3304.3,3303.7,0.49071]
[1762532481088,3.2078,3304.3,3303.4,3.2078]
[1762532481277,3.69843,3304.3,3303.4,3.2078]
[1762532481477,0.1613,3305.6,3303.0,0.1663]
[1762532481478,3.2078,3304.8,3303.9,0.1663]
[1762532481686,0.00249124,3304.8,3304.6,0.49057]
[1762532481882,0.00249124,3304.8,3304.6,3.70114613]
[1762532482483,0.00249124,3304.8,3304.6,0.00277613]
[1762532483192,0.49305124,3304.8,3304.6,0.00277613]
[1762532483988,0.4906,3304.5,3304.4,0.00454104]
[1762532484288,3.2078,3304.7,3303.8,3.2078]
[1762532484485,3.2078,3305.6,3303.9,0.1663]
[1762532484691,0.1613,3305.7,3304.8,3.69835]
[1762532484887,0.1613,3305.7,3305.5,0.49044]
[1762532485090,3.2078,3306.3,3305.6,3.2078]
[1762532485290,3.69813,3306.3,3305.8,0.49039]
[1762532485490,3.69813,3306.3,3305.6,3.2078]
[1762532485491,0.1613,3306.6,3305.6,3.2078]
[1762532485788,0.65172,3305.7,3305.6,0.00830127]
[1762532486091,0.1613,3305.7,3304.3,3.2078]
[1762532486295,3.2078,3305.6,3304.3,3.69842]
[1762532486494,0.49054,3304.9,3304.3,3.69842]
[1762532486684,0.49054,3304.9,3304.3,3.2078]
[1762532486884,3.2078,3305.6,3304.7,3.2078]
[1762532487084,0.49048,3305.3,3304.9,0.49053]
[1762532487284,3.2078,3305.6,3304.8,0.00454104]
[1762532487490,0.49052,3305.0,3304.7,0.00300022]
[1762532487690,0.49071,3303.8,3303.6,3.2078]
[1762532488384,3.2078,3304.4,3303.6,3.2078]
[1762532488584,0.49068,3304.0,3303.6,3.2115367]
[1762532488905,3.5386,3303.9,3302.3,0.49091]
[1762532489191,3.2078,3303.2,3302.2,3.2078]
[1762532489394,3.2078,3304.0,3303.0,3.5346]
[1762532489583,0.4907,3303.8,3303.0,3.5346]
[1762532489988,3.2078,3304.0,3303.1,0.00454104]
[1762532490285,3.2078,3303.6,3303.1,0.49534104]
[1762532490594,0.49076,3303.4,3303.1,0.49534104]
[1762532490892,3.2078,3303.2,3303.1,0.00454104]
[1762532491592,3.2078,3303.7,3303.1,0.00454104]
[1762532491889,0.49076,3303.4,3303.1,0.00454104]
[1762532492098,0.49079,3303.2,3303.1,0.00454104]
[1762532494095,0.49089,3302.5,3302.4,3.2078]
[1762532494390,2.13554993,3304.5,3302.4,3.2078]
[1762532494391,3.2078,3305.3,3304.8,0.3268]
[1762532494596,3.2078,3305.5,3304.8,0.3268]